bitfinex-derivatives/quotes_SOLF0:USTF0_20241101
["timestamp","ask_amount","ask_price","bid_price","bid_amount"]
[1730439299968,8.28339426,167.05,167.0,3.9737]
[1730439300285,8.28339426,167.05,167.01,2.9968]
[1730439300576,8.28339426,167.05,167.0,3.9737]
[1730439300776,8.28339426,167.05,167.03,2.9965]
[1730439301184,8.28339426,167.05,167.0,3.9737]
[1730439301570,8.28339426,167.06,167.0,12.25709426]
[1730439301770,8.28339426,167.08,167.02,8.28339426]
[1730439302174,8.28339426,167.09,167.04,8.28339426]
[1730439302680,8.28339426,167.09,167.06,2.996]
[1730439304972,62.96357503,167.12,167.09,2.9954]
[1730439306380,8.28339426,167.1,167.05,10.90339426]
[1730439306584,8.28339426,167.1,167.07,2.9957]
[1730439307674,57.67518077,167.12,167.05,2.62]
[1730439307675,8.28339426,167.08,167.05,2.62]
[1730439307877,8.28339426,167.08,167.02,10.90339426]
[1730439308378,8.28339426,167.08,167.03,2.9964]
[1730439308577,8.28339426,167.08,167.02,10.90339426]
[1730439309790,8.28339426,167.06,167.03,2.9965]
[1730439321100,11.27949426,167.06,167.01,2.9968]
[1730439321392,11.27949426,167.06,167.0,3.9737]
[1730439321393,8.28339426,167.05,167.0,3.9737]
[1730439322381,8.28339426,167.05,167.02,2.9967]
[1730439325289,11.27949426,167.06,167.02,2.9967]
[1730439328394,8.28339426,167.09,167.02,8.28339426]
[1730439328597,11.27889426,167.09,167.05,2.9961]
[1730439336604,8.28339426,167.08,167.05,2.9961]
[1730439339400,8.28339426,167.09,167.03,8.28339426]
[1730439339894,8.28339426,167.08,167.02,10.90339426]
[1730439340599,8.28339426,167.08,167.04,2.9963]
[1730439341593,11.27909426,167.08,167.04,2.9963]
[1730439358206,11.27889426,167.09,167.04,2.9964]
[1730439359010,11.27889426,167.09,167.04,2.97267484]
[1730439359609,8.28339426,167.08,167.04,2.97267484]
[1730439359920,11.27909426,167.08,167.04,2.97267484]
[1730439366017,11.19999499,167.08,167.04,2.97267484]
[1730439372818,8.28339426,167.06,167.02,2.62]
[1730439373213,8.28339426,167.06,167.0,10.90339426]
[1730439374221,8.28339426,167.06,167.02,2.9967]
[1730439374222,11.27959426,167.06,167.02,2.9967]
[1730439384442,8.28339426,167.06,167.0,8.28339426]
[1730439384629,8.28339426,167.05,167.01,2.9969]
[1730439386636,11.27939426,167.06,167.01,11.28029426]
[1730439388042,5.2804,167.09,167.02,8.28339426]
[1730439388043,11.27909426,167.08,167.02,8.28339426]
[1730439389345,11.27909426,167.08,167.03,2.9965]
[1730439395555,4.3699,167.09,167.05,2.9962]
[1730439406256,8.28339426,167.11,167.07,8.28339426]
[1730439406459,8.28339426,167.13,167.07,8.28339426]
[1730439407256,2.995,167.12,167.08,2.9956]
[1730439422567,11.27819426,167.13,167.09,2.9954]
[1730439422968,8.28339426,167.13,167.08,8.28339426]
[1730439423170,2.995,167.12,167.08,11.27899426]
[1730439424581,2.995,167.12,167.08,2.9956]
[1730439428659,8.28339426,167.1,167.05,8.28339426]
[1730439428977,8.28339426,167.1,167.05,2.9961]
[1730439429970,11.27849426,167.12,167.05,11.27949426]
[1730439430173,8.28339426,167.12,167.05,11.27949426]
[1730439430577,2.9954,167.1,167.05,11.27949426]
[1730439431769,2.9954,167.1,167.06,2.996]
[1730439439670,2.995,167.12,167.09,2.9955]
[1730439439872,1.341,167.14,167.08,8.28339426]
[1730439440071,1.341,167.14,167.1,8.28339426]
[1730439440492,8.28339426,167.18,167.11,8.28339426]
[1730439440786,8.28339426,167.18,167.13,8.28339426]
[1730439440981,2.9942,167.17,167.13,8.28339426]
[1730439443283,57.65967307,167.16,167.13,8.28339426]
[1730439448491,54.66537307,167.16,167.13,8.28339426]
[1730439448681,54.66537307,167.16,167.13,11.27809426]
[1730439452381,1.3078,167.19,167.14,8.28339426]
[1730439452890,1.3078,167.19,167.15,2.9944]
[1730439453692,4.3015,167.19,167.15,2.9944]
[1730439454392,2.9939,167.18,167.14,11.27799426]
[1730439457295,11.27669426,167.21,167.16,11.27749426]
[1730439457882,2.9933,167.21,167.16,11.27749426]
[1730439458087,2.9933,167.21,167.17,2.994]
[1730439459488,2.9933,167.21,167.16,11.27759426]
[1730439459693,8.41664122,167.22,167.16,11.27759426]
[1730439459891,2.9937,167.2,167.16,11.27759426]
[1730439468402,18.01682419,167.23,167.16,8.28339426]
[1730439468699,2.9937,167.19,167.16,8.28339426]
[1730439476008,2.9937,167.19,167.17,8.28339426]
[1730439477408,2.9935,167.2,167.17,8.28339426]
[1730439477619,2.9935,167.2,167.19,8.28339426]
[1730439478508,2.9933,167.22,167.19,8.28339426]
[1730439478709,1.3178,167.23,167.19,8.28339426]
[1730439480310,2.9935,167.21,167.19,8.28339426]
[1730439483708,1.3178,167.23,167.19,8.28339426]
[1730439484015,2.9932,167.22,167.19,8.28339426]
[1730439485006,4.3109,167.23,167.2,8.28339426]
[1730439485207,2.9931,167.23,167.2,8.28339426]
[1730439488914,2.9929,167.24,167.2,8.28339426]
[1730439492630,2.9929,167.24,167.2,11.27689426]
[1730439494123,8.28339426,167.26,167.2,8.28339426]
[1730439494322,2.993,167.23,167.2,8.28339426]
[1730439494622,2.993,167.23,167.19,13.87709426]
[1730439496524,2.9934,167.21,167.17,11.27739426]
[1730439496716,2.9934,167.21,167.18,2.6]
[1730439498122,2.9935,167.2,167.18,2.6]
[1730439499329,8.28339426,167.23,167.18,2.6]
[1730439499530,2.9934,167.21,167.18,2.6]
[1730439499923,2.9937,167.19,167.17,8.28339426]
[1730439501318,2.994,167.18,167.16,8.28339426]
[1730439501523,8.28339426,167.21,167.14,10.88339426]
[1730439503227,2.994,167.18,167.14,10.88339426]
[1730439505717,8.28339426,167.19,167.13,8.28339426]
[1730439505920,2.9942,167.17,167.13,8.28339426]
[1730439506131,8.28339426,167.16,167.1,8.28339426]
[1730439506329,8.28339426,167.16,167.11,2.6]
[1730439506531,2.9945,167.15,167.11,2.6]
[1730439508934,8.28339426,167.16,167.11,2.6]
[1730439508935,2.9946,167.14,167.11,2.6]
[1730439512429,2.9946,167.14,167.1,8.28339426]
[1730439513836,2.9946,167.14,167.1,11.27869426]
[1730439517434,11.27799426,167.14,167.1,2.9953]
[1730439518947,2.9946,167.14,167.1,11.27869426]
[1730439521239,8.28339426,167.16,167.1,8.28339426]
[1730439521444,8.28339426,167.16,167.11,2.9951]
[1730439521445,2.9945,167.15,167.11,2.9951]
[1730439523635,8.28339426,167.16,167.1,8.28339426]
[1730439523837,2.6,167.18,167.09,3.9619]
[1730439523838,2.9947,167.14,167.09,15.24069426]
[1730439526047,2.9947,167.14,167.1,2.9953]
[1730439543860,5.5826,167.17,167.12,11.27819426]
[1730439544066,4.3245,167.17,167.12,11.27819426]
[1730439544270,4.3245,167.17,167.12,8.28339426]
[1730439545261,4.3245,167.17,167.13,2.9948]
[1730439546270,4.3245,167.17,167.12,11.27829426]
[1730439549672,2.9942,167.16,167.12,11.27829426]
[1730439554972,8.28339426,167.18,167.15,2.9943]
[1730439555274,8.28339426,167.19,167.15,2.9943]
[1730439555869,11.27709426,167.19,167.15,2.9943]
[1730439561373,8.28339426,167.19,167.13,10.88339426]
[1730439561681,8.28339426,167.17,167.13,2.6]
[1730439562376,11.27759426,167.17,167.13,2.6]
[1730439563173,11.27759426,167.17,167.13,5.5947]
[1730439567684,11.27759426,167.17,167.13,2.9947]
[1730439583683,2.9942,167.17,167.13,2.9947]
[1730439584492,2.9938,167.19,167.15,2.9943]
[1730439584690,62.94015019,167.2,167.15,8.28339426]
[1730439585093,65.93375019,167.2,167.16,2.9942]
[1730439585490,65.93375019,167.2,167.15,8.28339426]
[1730439585690,65.93375019,167.2,167.15,11.27779426]
[1730439587303,2.9937,167.19,167.15,11.27779426]
[1730439590096,2.9937,167.19,167.15,2.9944]
[1730439601319,11.27709426,167.19,167.15,2.9944]
[1730439601606,11.27709426,167.19,167.14,2.9945]
[1730439601815,11.27709426,167.19,167.12,8.28339426]
[1730439602206,11.27709426,167.19,167.14,2.9944]
[1730439602804,11.27709426,167.19,167.15,2.9944]
[1730439603611,8.28339426,167.17,167.09,1.3619]
[1730439603817,8.28339426,167.16,167.11,8.28339426]
[1730439604314,8.28339426,167.16,167.1,2.6]
[1730439604717,8.28339426,167.16,167.09,9.64529426]
[1730439604919,8.28339426,167.14,167.08,10.88339426]
[1730439605222,8.28339426,167.12,167.08,10.88339426]
[1730439606011,8.28339426,167.12,167.09,2.9954]
[1730439606614,11.27839426,167.12,167.08,2.9956]
[1730439619433,8.28339426,167.11,167.07,2.6]
[1730439619739,8.28339426,167.11,167.07,5.5958]
[1730439621849,1.386,167.15,167.03,10.88339426]
[1730439621850,8.28339426,167.08,167.03,10.88339426]
[1730439622037,8.28339426,167.06,167.02,8.28339426]
[1730439622238,8.28339426,167.06,167.0,10.88339426]
[1730439622640,11.27949426,167.06,167.01,2.9969]
[1730439623039,2.6306,167.09,166.99,10.88339426]
[1730439623040,8.28339426,167.05,166.99,10.88339426]
[1730439623349,11.27979426,167.05,167.0,2.997]
[1730439624652,8.28339426,167.03,166.98,2.6]
[1730439625138,11.28009426,167.03,166.98,5.5973]
[1730439626338,8.28339426,167.02,166.98,2.9973]
[1730439626540,8.28339426,167.02,166.96,10.88339426]
[1730439626840,8.28339426,167.02,166.97,2.9976]
[1730439627039,11.28019426,167.02,166.97,2.9976]
[1730439627245,8.28339426,167.0,166.97,2.9976]
[1730439628040,8.28339426,167.0,166.96,13.88119426]
[1730439629648,11.28049426,167.0,166.95,2.998]
[1730439630740,8.28339426,166.99,166.95,2.998]
[1730439632145,11.28069426,166.99,166.94,2.9982]
[1730439633355,8.28339426,167.0,166.96,2.9977]
[1730439634449,8.28339426,166.99,166.96,2.9977]
[1730439654960,8.28339426,166.98,166.93,2.6]
[1730439655361,8.28339426,166.99,166.93,10.88339426]
[1730439655552,8.28339426,166.99,166.96,2.9978]
[1730439663063,8.28339426,166.99,166.93,10.88339426]
[1730439663064,12.60669426,167.01,166.97,2.9976]
[1730439663373,9.60969426,167.01,166.96,8.28339426]
[1730439663579,9.60969426,167.01,166.93,2.6]
[1730439663580,9.60969426,167.01,166.95,11.28129426]
[1730439663764,9.60969426,167.01,166.95,8.28339426]
[1730439664258,9.60969426,167.01,166.96,2.9977]
[1730439664465,9.60969426,167.01,166.95,8.28339426]
[1730439665379,9.60969426,167.01,166.97,2.9975]
[1730439670178,9.60969426,167.01,166.96,2.9977]
[1730439670383,9.60969426,167.01,166.95,8.28339426]
[1730439671080,8.28339426,167.01,166.97,2.9975]
[1730439675669,8.28339426,167.01,166.98,2.9974]
[1730439679288,8.28339426,167.02,166.96,10.90339426]
[1730439679585,8.28339426,167.04,166.98,8.28339426]
[1730439680179,8.28339426,167.04,167.01,2.9968]
[1730439683479,8.28339426,167.04,166.98,8.28339426]
[1730439683787,8.28339426,167.04,167.0,2.9971]
[1730439688293,8.28339426,167.04,167.01,2.9969]
[1730439693193,54.70715025,167.05,167.03,2.9965]
[1730439693396,1.2548,167.06,167.03,2.9965]
[1730439695498,1.2548,167.06,167.01,10.88339426]
[1730439695803,8.28339426,167.07,167.04,2.9962]
[1730439696003,8.28339426,167.09,167.03,8.28339426]
[1730439696201,9.59909426,167.1,167.07,2.9958]
[1730439696504,1.3157,167.1,167.07,2.9958]
[1730439698802,8.28339426,167.09,167.07,2.9958]
[1730439701895,9.59909426,167.1,167.07,2.9958]
[1730439705610,1.3157,167.1,167.05,2.6]
[1730439705815,8.28339426,167.13,167.06,8.28339426]
[1730439706004,8.28339426,167.13,167.08,8.28339426]
[1730439706406,8.28339426,167.13,167.1,2.9952]
[1730439707108,8.28339426,167.13,167.08,8.28339426]
[1730439707109,8.28339426,167.13,167.09,2.9955]
[1730439712514,11.27819426,167.13,167.09,2.9955]
[1730439718119,8.28339426,167.12,167.09,2.9955]
[1730439719611,11.27819426,167.13,167.09,2.9955]
[1730439724514,8.28339426,167.12,167.09,2.9955]
[1730439724708,2.9948,167.13,167.03,1.3623]
[1730439724709,8.28339426,167.1,167.07,2.6]
[1730439724922,8.28339426,167.1,167.05,2.6]
[1730439726125,8.28339426,167.11,167.06,8.28339426]
[1730439727225,8.28339426,167.11,167.08,2.9955]
[1730439738733,8.28339426,167.11,167.06,8.28339426]
[1730439738941,11.27859426,167.11,167.07,2.9957]
[1730439749740,2.9955,167.09,167.05,2.9961]
[1730439750036,8.28339426,167.1,167.03,2.6]
[1730439750339,8.28339426,167.08,167.04,2.9963]
[1730439750733,8.28339426,167.08,167.03,2.6]
[1730439750941,11.27909426,167.08,167.04,2.9963]
[1730439751735,8.28339426,167.08,167.04,2.9963]
[1730439751955,11.27909426,167.08,167.03,2.9965]
[1730439752447,2.9961,167.06,167.02,40.98775309]
[1730439752636,2.9961,167.06,167.02,35.39105309]
[1730439752637,8.28339426,167.06,167.02,35.39105309]
[1730439753439,11.27949426,167.06,167.02,38.38765309]
[1730439757934,8.28339426,167.04,167.01,5.5969]
[1730439758139,8.28339426,167.04,167.01,2.6]
[1730439758841,11.27979426,167.04,167.01,2.6]
[1730439759942,8.28339426,167.04,167.01,2.6]
[1730439761649,8.28339426,167.04,167.01,5.5969]
[1730439762048,11.27939426,167.07,167.01,2.6]
[1730439762254,11.27939426,167.07,167.03,2.9964]
[1730439763450,8.28339426,167.07,167.02,8.28339426]
[1730439763655,9.65209426,167.1,167.07,2.9958]
[1730439765043,2.5485,167.17,167.05,2.6]
[1730439765044,8.28339426,167.15,167.09,8.28339426]
[1730439765250,2.5485,167.17,167.1,8.28339426]
[1730439765251,8.28339426,167.16,167.1,8.28339426]
[1730439766351,11.27769426,167.16,167.11,2.995]
[1730439768357,8.28339426,167.16,167.1,8.28339426]
[1730439769562,8.28339426,167.16,167.12,2.9949]
[1730439770061,11.27749426,167.17,167.12,2.9949]
[1730439771349,11.27749426,167.17,167.12,11.27829426]
[1730439774957,8.28339426,167.16,167.12,2.9949]
[1730439778465,11.27759426,167.16,167.12,2.9949]
[1730439787389,11.27759426,167.16,167.09,2.6]
[1730439787390,85.46398979,167.18,167.13,8.28339426]
[1730439787595,85.46398979,167.18,167.15,8.28339426]
[1730439788076,85.46398979,167.18,167.15,11.27779426]
[1730439791284,85.46398979,167.18,167.15,2.9944]
[1730439799392,85.46398979,167.18,167.15,11.27779426]
[1730439800388,2.9937,167.19,167.15,11.27779426]
[1730439804696,1.3561,167.2,167.17,2.994]
[1730439811405,2.9928,167.24,167.2,2.9934]
[1730439813207,10.92399426,167.25,167.19,8.28339426]
[1730439813409,13.91669426,167.25,167.21,2.9932]
[1730439814211,10.92399426,167.25,167.19,8.28339426]
[1730439814509,2.9928,167.24,167.2,2.9935]
[1730439817105,2.6406,167.25,167.19,8.28339426]
[1730439817308,5.6333,167.25,167.21,11.27669426]
[1730439821018,4.3704,167.25,167.21,11.27669426]
[1730439821419,1.3777,167.25,167.22,8.28339426]
[1730439821614,1.3777,167.25,167.22,11.27649426]
[1730439821815,54.6345793,167.26,167.22,8.28339426]
[1730439823422,54.6345793,167.26,167.23,2.993]
[1730439826422,54.6345793,167.26,167.24,8.28339426]
[1730439828321,57.6270793,167.26,167.24,8.28339426]
[1730439832225,54.6345793,167.26,167.24,8.28339426]
[1730439836329,2.9923,167.27,167.24,8.28339426]
[1730439840140,8.28339426,167.29,167.24,8.28339426]
[1730439840332,1.3092,167.3,167.21,10.88339426]
[1730439840333,8.28339426,167.26,167.21,10.88339426]
[1730439841338,8.28339426,167.26,167.21,13.87659426]
[1730439842138,11.27599426,167.26,167.21,13.87659426]
[1730439845141,8.28339426,167.26,167.21,8.28339426]
[1730439845344,2.9929,167.24,167.21,8.28339426]
[1730439847933,2.9929,167.24,167.19,13.87699426]
[1730439855358,2.993,167.23,167.19,13.87699426]
[1730439860172,2.993,167.23,167.19,5.5936]
[1730439861670,2.9935,167.2,167.16,13.87759426]
[1730439863865,8.28339426,167.21,167.16,2.6]
[1730439864076,2.9937,167.19,167.16,2.6]
[1730439864674,2.9935,167.2,167.16,5.5942]
[1730439873182,2.9935,167.2,167.16,2.9942]
[1730439885697,11.27689426,167.2,167.16,2.9942]
[1730439898691,11.27669426,167.21,167.17,2.994]
[1730439899795,8.28339426,167.21,167.15,8.28339426]
[1730439900002,2.9936,167.2,167.16,2.9942]
[1730439901994,8.28339426,167.21,167.15,10.88339426]
[1730439902201,8.28339426,167.22,167.17,8.28339426]
[1730439903200,8.28339426,167.22,167.19,2.9936]
[1730439904110,8.28339426,167.22,167.17,8.28339426]
[1730439904300,11.27659426,167.22,167.18,2.9938]
[1730439904503,8.28339426,167.21,167.15,10.88339426]
[1730439905502,11.27689426,167.21,167.17,2.994]
[1730439905699,11.27689426,167.21,167.15,10.88339426]
[1730439905700,8.28339426,167.21,167.15,10.88339426]
[1730439907409,2.9936,167.2,167.16,2.9942]
[1730439909304,2.9936,167.2,167.17,2.994]
[1730439916300,2.6,167.24,167.15,10.88339426]
[1730439916301,8.28339426,167.22,167.15,10.88339426]
[1730439916502,11.27659426,167.22,167.18,2.9939]
[1730439916704,8.28339426,167.22,167.18,2.9939]
[1730439916908,8.28339426,167.22,167.17,8.28339426]
[1730439918308,2.9934,167.21,167.17,11.27739426]
[1730439919411,11.27679426,167.21,167.17,2.994]
[1730439928012,2.9936,167.2,167.16,2.9942]
[1730439928720,11.27719426,167.19,167.14,5.5945]
[1730439930811,2.9942,167.17,167.14,2.6]
[1730439935623,2.9942,167.17,167.13,11.27799426]
[1730439938531,2.9939,167.18,167.14,2.9945]
[1730439942033,1.2949,167.2,167.16,2.9941]
[1730439943132,4.2884,167.2,167.16,2.9941]
[1730439945532,1.2949,167.2,167.17,2.994]
[1730439946529,4.2884,167.2,167.16,2.9942]
[1730439947119,8.28339426,167.24,167.19,2.9936]
[1730439947932,11.27639426,167.24,167.19,2.9936]
[1730439952831,11.27639426,167.24,167.18,8.28339426]
[1730439952832,8.28339426,167.26,167.21,8.28339426]
[1730439953234,8.28339426,167.26,167.22,2.993]
[1730439953932,11.27589426,167.26,167.22,2.993]
[1730439956437,2.9925,167.26,167.22,2.993]
[1730439958141,11.27589426,167.26,167.22,2.993]
[1730439958331,8.28339426,167.25,167.22,2.993]
[1730439959931,11.27589426,167.26,167.22,2.993]
[1730439960338,2.9927,167.25,167.21,8.28339426]
[1730439960547,8.28339426,167.26,167.21,8.28339426]
[1730439960739,8.28339426,167.26,167.2,10.88339426]
[1730439961448,11.27589426,167.26,167.21,2.9933]
[1730439967847,8.28339426,167.25,167.2,2.6]
[1730439968052,2.993,167.23,167.2,2.6]
[1730439969642,2.993,167.23,167.18,9.55869426]
[1730439969643,2.9933,167.22,167.18,2.6]
[1730439970242,2.9936,167.2,167.16,2.9942]
[1730439970442,8.28339426,167.21,167.16,2.6]
[1730439971448,2.9935,167.2,167.16,2.6]
[1730439973336,2.9937,167.19,167.16,2.6]
[1730439973535,11.27709426,167.19,167.14,13.87789426]
[1730439973746,8.28339426,167.19,167.14,10.88339426]
[1730439973938,11.27709426,167.19,167.14,10.88339426]
[1730439975145,11.27709426,167.19,167.14,13.87789426]
[1730439978646,11.27709426,167.19,167.15,2.9944]
[1730439980955,11.27689426,167.19,167.15,2.9941]
[1730439982554,11.27649426,167.21,167.16,2.9938]
[1730439982764,11.27649426,167.21,167.15,8.28339426]
[1730439983053,11.27649426,167.21,167.16,2.9939]
[1730439983559,11.27629426,167.22,167.15,8.28339426]
[1730439983763,11.27629426,167.22,167.17,2.9936]
[1730439985060,2.9931,167.21,167.17,2.9936]
[1730439988069,1.3079,167.24,167.17,8.28339426]
[1730439988070,9.59129426,167.24,167.17,8.28339426]
[1730439988259,9.59129426,167.24,167.18,10.88339426]
[1730439988260,1.3079,167.24,167.18,10.88339426]
[1730439988564,1.3079,167.24,167.2,2.9932]
[1730439989254,4.3004,167.24,167.2,2.9932]
[1730439993169,8.28339426,167.23,167.2,2.9932]
[1730439993372,8.28339426,167.23,167.18,10.88339426]
[1730439993373,11.27629426,167.22,167.18,2.9935]
[1730439993559,1.3079,167.24,167.17,8.28339426]
[1730439993560,8.28339426,167.2,167.17,2.6]
[1730439994358,11.27669426,167.2,167.16,5.5938]
[1730439995963,2.9931,167.21,167.16,2.6]
[1730439996161,2.9931,167.21,167.17,2.9937]
[1730439996764,2.9931,167.21,167.17,11.27709426]
[1730440002367,12.54219426,167.23,167.18,2.9935]
[1730440002567,12.54219426,167.23,167.17,8.28339426]
[1730440003274,12.54219426,167.23,167.19,2.9934]
[1730440006073,9.59129426,167.24,167.18,8.28339426]
[1730440006373,12.58379426,167.24,167.2,2.9931]
[1730440016590,1.3079,167.24,167.21,2.993]
[1730440017267,8.28339426,167.27,167.22,11.27609426]
[1730440017777,8.28339426,167.27,167.23,2.9925]
[1730440018973,11.27539426,167.27,167.22,11.27619426]
[1730440027481,8.28339426,167.27,167.22,11.27619426]
[1730440027782,8.28339426,167.24,167.21,2.993]
[1730440028389,8.28339426,167.24,167.2,2.6]
[1730440028581,8.28339426,167.24,167.2,2.9932]
[1730440029177,11.27599426,167.24,167.2,2.9932]
[1730440029571,11.27599426,167.24,167.19,5.5934]
[1730440030085,11.27619426,167.23,167.19,2.6]
[1730440031391,11.27619426,167.23,167.19,5.5934]
[1730440033891,2.9931,167.21,167.16,2.9938]
[1730440034087,8.28339426,167.21,167.16,11.27719426]
[1730440034477,8.28339426,167.2,167.16,11.27719426]
[1730440036188,11.27639426,167.21,167.16,11.27719426]
[1730440037500,2.993,167.21,167.17,11.27709426]
[1730440044098,2.993,167.21,167.17,2.9937]
[1730440044892,9.66339426,167.22,167.19,2.9934]
[1730440045705,1.38,167.22,167.19,2.9934]
[1730440047690,8.28339426,167.21,167.18,2.9936]
[1730440047901,8.28339426,167.2,167.18,2.9936]
[1730440049097,11.27669426,167.2,167.16,5.5939]
[1730440049303,8.28339426,167.2,167.16,5.5939]
[1730440051106,1.38,167.22,167.14,43.64670582]
[1730440051107,8.28339426,167.17,167.14,2.9943]
[1730440051296,8.28339426,167.16,167.12,1.291]
[1730440051602,8.28339426,167.16,167.12,5.5945]
[1730440051901,8.28339426,167.16,167.12,2.6]
[1730440052605,8.28339426,167.16,167.13,2.9945]
[1730440052998,8.28339426,167.18,167.12,10.88339426]
[1730440054508,11.27699426,167.18,167.14,2.9943]
[1730440054696,11.27699426,167.18,167.12,10.88339426]
[1730440055301,8.28339426,167.16,167.12,5.5946]
[1730440058213,8.28339426,167.16,167.12,2.9946]
[1730440060211,2.9938,167.17,167.12,2.9946]
[1730440070016,8.28339426,167.16,167.12,2.9946]
[1730440071504,8.28339426,167.16,167.13,2.9945]
[1730440071709,2.7438,167.21,167.09,8.28339426]
[1730440071904,11.27769426,167.14,167.1,8.41064701]
[1730440072108,11.27769426,167.14,167.1,2.6]
[1730440072322,11.27769426,167.14,167.1,5.5949]
[1730440072619,8.28339426,167.14,167.1,2.6]
[1730440072819,8.28339426,167.14,167.11,2.9948]
[1730440073322,8.28339426,167.14,167.09,8.28339426]
[1730440073523,11.27769426,167.14,167.1,2.995]
[1730440075525,8.28339426,167.13,167.1,2.995]
[1730440075719,2.7438,167.21,167.03,2.9961]
[1730440075720,8.28339426,167.11,167.03,2.9961]
[1730440075926,8.7301,167.21,167.04,5.80833052]
[1730440075927,8.28339426,167.09,167.04,5.80833052]
[1730440076130,8.28339426,167.09,167.02,10.88339426]
[1730440076423,8.28339426,167.09,167.05,2.9958]
[1730440077317,8.28339426,167.07,167.02,10.88339426]
[1730440077519,8.28339426,167.06,166.99,8.28339426]
[1730440077719,8.28339426,167.06,167.02,2.66]
[1730440077927,8.28339426,167.06,167.01,2.66]
[1730440078126,11.27929426,167.06,167.01,5.6566]
[1730440078319,8.28339426,167.04,167.01,5.6566]
[1730440079935,11.27949426,167.04,167.0,2.66]
[1730440080923,11.27949426,167.04,167.0,5.6568]
[1730440081430,11.27979426,167.03,166.98,11.28049426]
[1730440081727,8.28339426,167.0,166.98,2.66]
[1730440082028,8.28339426,167.0,166.96,8.28339426]
[1730440082029,11.28029426,167.0,166.96,2.66]
[1730440082243,11.28029426,167.0,166.94,9.62989426]
[1730440082244,8.28339426,166.99,166.94,1.3465]
[1730440082545,8.28339426,166.99,166.95,2.66]
[1730440083047,2.9972,166.98,166.95,2.66]
[1730440083230,8.28339426,166.99,166.95,2.66]
[1730440084031,11.28039426,166.99,166.95,2.66]
[1730440085837,11.28039426,166.99,166.94,5.6779]
[1730440089129,8.28339426,166.97,166.94,5.6779]
[1730440090543,8.28339426,166.97,166.94,2.68]
[1730440090744,8.28339426,166.99,166.96,2.9975]
[1730440095047,8.28339426,166.99,166.97,2.9973]
[1730440095247,4.2728,167.02,166.94,2.68]
[1730440095248,8.28339426,167.02,166.96,8.28339426]
[1730440095551,8.28339426,167.01,166.97,2.9972]
[1730440095855,8.28339426,167.01,166.98,2.68]
[1730440097051,8.28339426,167.01,166.98,5.6772]
[1730440098061,8.28339426,166.99,166.96,2.68]
[1730440098253,2.9969,167.0,166.96,2.68]
[1730440098254,8.28339426,166.97,166.96,2.68]
[1730440104158,11.28059426,166.98,166.96,2.68]
[1730440104362,8.28339426,166.98,166.96,2.68]
[1730440104759,8.28339426,167.0,166.96,2.68]
[1730440105667,11.28039426,166.99,166.96,2.68]
[1730440106061,8.28339426,166.97,166.96,2.68]
[1730440108458,8.28339426,166.97,166.93,5.718]
[1730440110265,8.28339426,166.97,166.93,2.998]
[1730440114072,8.28339426,166.97,166.94,2.9979]
[1730440114669,2.9973,166.98,166.93,8.28339426]
[1730440114670,8.28339426,166.98,166.93,8.28339426]
[1730440115671,8.28339426,166.98,166.95,2.9976]
[1730440117269,8.28339426,166.98,166.93,8.28339426]
[1730440117466,8.28339426,166.98,166.96,2.9975]
[1730440128984,8.28339426,166.97,166.96,2.9975]
[1730440129186,8.28339426,166.97,166.92,2.72]
[1730440129489,8.28339426,166.95,166.93,2.9979]
[1730440132980,8.28339426,166.97,166.93,2.9979]
[1730440139791,8.28339426,166.97,166.93,5.6979]
[1730440144288,8.28339426,166.94,166.87,8.28339426]
[1730440144494,8.28339426,166.94,166.9,2.9986]
[1730440144495,11.28139426,166.94,166.9,2.9986]
[1730440145789,8.28339426,166.94,166.9,2.9986]
[1730440147002,8.28339426,166.92,166.9,2.9986]
[1730440147187,8.28339426,166.92,166.88,2.7]
[1730440147392,8.28339426,166.92,166.89,2.9988]
[1730440151200,8.28339426,166.92,166.89,5.6988]
[1730440152302,8.28339426,166.92,166.9,2.9986]
[1730440159004,8.28339426,166.93,166.91,2.9983]
[1730440160703,1.26,166.94,166.9,8.28339426]
[1730440160911,8.28339426,166.95,166.9,8.28339426]
[1730440161115,8.28339426,166.96,166.9,8.28339426]
[1730440161310,8.28339426,166.96,166.91,2.9983]
[1730440161520,8.28339426,166.96,166.9,8.28339426]